[Event "*** Titled Tuesday Blitz"]
[Site "Chess.com"]
[Date "2020.04.28"]
[Round "3"]
[White "DDTerziev04"]
[Black "Anna_ChessMate"]
[Result "0-1"]
[WhiteElo "2312"]
[BlackElo "2538"]
[TimeControl "180+1"]
[EndTime "10:29:37 PDT"]
[Termination "Anna_ChessMate won by resignation"]

1. e4 {[%clk 0:03:00.9]} 1... c6 {[%clk 0:02:59.7]} 2. d4 {[%clk 0:02:58.8]}
2... d5 {[%clk 0:03:00.6]} 3. exd5 {[%clk 0:02:58.4]} 3... cxd5 {[%clk
0:02:59.7]} 4. Bd3 {[%clk 0:02:50.6]} 4... Nc6 {[%clk 0:02:58.5]} 5. c3 {[%clk
0:02:50.4]} 5... Nf6 {[%clk 0:02:58.9]} 6. Bf4 {[%clk 0:02:48.5]} 6... Bg4
{[%clk 0:02:59.3]} 7. Qb3 {[%clk 0:02:47.4]} 7... e5 {[%clk 0:02:59.8]} 8. dxe5
{[%clk 0:02:43]} 8... Nh5 {[%clk 0:02:59.9]} 9. Qxb7 {[%clk 0:02:19.8]} 9...
Nxf4 {[%clk 0:02:58.8]} 10. Qxc6+ {[%clk 0:02:16.9]} 10... Bd7 {[%clk
0:02:59.1]} 11. Qa6 {[%clk 0:02:16.7]} 11... Qb8 {[%clk 0:02:59.6]} 12. Nd2
{[%clk 0:01:56.6]} 12... Qxb2 {[%clk 0:02:57.4]} 13. Rb1 {[%clk 0:01:45.2]}
13... Nxd3+ {[%clk 0:02:50.2]} 14. Qxd3 {[%clk 0:01:42.1]} 14... Qxa2 {[%clk
0:02:50.2]} 15. Ngf3 {[%clk 0:01:39.2]} 15... Be7 {[%clk 0:02:49.2]} 16. O-O
{[%clk 0:01:34.1]} 16... Qa5 {[%clk 0:02:38]} 17. Rb7 {[%clk 0:01:22.9]} 17...
Rd8 {[%clk 0:02:25.7]} 18. Nb3 {[%clk 0:01:08.6]} 18... Qa4 {[%clk 0:02:17.8]}
19. Ra1 {[%clk 0:01:04.4]} 19... Qg4 {[%clk 0:02:09]} 20. h3 {[%clk 0:00:57.2]}
20... Qe4 {[%clk 0:01:59.9]} 21. Qd2 {[%clk 0:00:47.3]} 21... Bc8 {[%clk
0:01:54]} 22. Rc7 {[%clk 0:00:43.9]} 22... a6 {[%clk 0:01:47.8]} 23. Nbd4 {[%clk
0:00:42.2]} 23... h6 {[%clk 0:01:36.6]} 24. Nc6 {[%clk 0:00:40.8]} 24... Bd7
{[%clk 0:01:26.1]} 25. Nxd8 {[%clk 0:00:33.5]} 25... Bxd8 {[%clk 0:01:27]} 26.
Rb7 {[%clk 0:00:29.7]} 26... Bc6 {[%clk 0:01:23.6]} 27. Rb8 {[%clk 0:00:26.4]}
27... O-O {[%clk 0:01:22.1]} 28. Rxa6 {[%clk 0:00:23]} 28... Bd7 {[%clk
0:01:22.3]} 29. Rd6 {[%clk 0:00:20.3]} 29... Qf5 {[%clk 0:01:15.8]} 30. Rb7
{[%clk 0:00:09.6]} 30... Be6 {[%clk 0:01:12.3]} 31. Rb8 {[%clk 0:00:08.9]} 31...
Bc8 {[%clk 0:01:04.4]} 32. Qd4 {[%clk 0:00:08.4]} 32... Bc7 {[%clk 0:01:04.3]}
33. Rxc8 {[%clk 0:00:06.1]} 33... Rxc8 {[%clk 0:00:57.1]} 34. Rc6 {[%clk
0:00:06.6]} 34... f6 {[%clk 0:00:53.3]} 35. Qc5 {[%clk 0:00:05.9]} 35... Qb1+
{[%clk 0:00:38.3]} 36. Kh2 {[%clk 0:00:05.6]} 36... Qb7 {[%clk 0:00:39.2]} 37.
g3 {[%clk 0:00:03]} 37... fxe5 {[%clk 0:00:36.1]} 38. Nxe5 {[%clk 0:00:02.5]}
38... Kh7 {[%clk 0:00:34]} 39. Nd7 {[%clk 0:00:02.9]} 39... Bxg3+ {[%clk
0:00:33.6]} 40. fxg3 {[%clk 0:00:02.6]} 40... Qxc6 {[%clk 0:00:33]} 41. Qe7
{[%clk 0:00:03.1]} 41... Qxc3 {[%clk 0:00:24.3]} 42. Nf8+ {[%clk 0:00:03.2]}
42... Kg8 {[%clk 0:00:22.6]} 43. Qe6+ {[%clk 0:00:02.5]} 43... Kxf8 {[%clk
0:00:22.8]} 44. Qd6+ {[%clk 0:00:02.4]} 44... Kg8 {[%clk 0:00:21.6]} 0-1

[Event "*** Titled Tuesday Blitz"]
[Site "Chess.com"]
[Date "2020.04.28"]
[Round "3"]
[White "Leonid_Starozhilov"]
[Black "AsaHoffmann"]
[Result "1-0"]
[WhiteElo "2599"]
[BlackElo "2313"]
[TimeControl "180+1"]
[EndTime "10:29:37 PDT"]
[Termination "Leonid_Starozhilov won by resignation"]

1. e4 {[%clk 0:03:00.9]} 1... d6 {[%clk 0:02:59]} 2. d4 {[%clk 0:02:58.5]} 2...
Nf6 {[%clk 0:02:57.8]} 3. Nc3 {[%clk 0:02:52.9]} 3... c6 {[%clk 0:02:54.5]} 4.
a4 {[%clk 0:02:51.8]} 4... Qa5 {[%clk 0:02:52.9]} 5. Bd2 {[%clk 0:02:46.4]} 5...
Qb6 {[%clk 0:02:52.4]} 6. Nf3 {[%clk 0:02:44.6]} 6... Bg4 {[%clk 0:02:51.3]} 7.
a5 {[%clk 0:02:42.5]} 7... Qc7 {[%clk 0:02:47.6]} 8. Bc4 {[%clk 0:02:36.1]} 8...
e6 {[%clk 0:02:47.3]} 9. h3 {[%clk 0:02:31.8]} 9... Bh5 {[%clk 0:02:46.6]} 10.
O-O {[%clk 0:02:17.4]} 10... d5 {[%clk 0:02:44.9]} 11. Bd3 {[%clk 0:02:17.7]}
11... Bb4 {[%clk 0:02:36.8]} 12. exd5 {[%clk 0:02:12.2]} 12... Bxc3 {[%clk
0:02:30.7]} 13. d6 {[%clk 0:01:51.2]} 13... Qxd6 {[%clk 0:02:27.1]} 14. Bxc3
{[%clk 0:01:51.3]} 14... Nbd7 {[%clk 0:02:22.2]} 15. Be2 {[%clk 0:01:49.8]}
15... Bxf3 {[%clk 0:02:19.7]} 16. Bxf3 {[%clk 0:01:49.8]} 16... O-O {[%clk
0:02:18.9]} 17. Re1 {[%clk 0:01:44.6]} 17... Rfd8 {[%clk 0:02:17.8]} 18. Qe2
{[%clk 0:01:41.1]} 18... Nd5 {[%clk 0:02:14.9]} 19. Bd2 {[%clk 0:01:38.2]} 19...
a6 {[%clk 0:02:14]} 20. c4 {[%clk 0:01:28.4]} 20... N5f6 {[%clk 0:02:07.7]} 21.
Bc3 {[%clk 0:01:24]} 21... Re8 {[%clk 0:02:00.5]} 22. b4 {[%clk 0:01:23.2]}
22... h6 {[%clk 0:01:54.9]} 23. Rad1 {[%clk 0:01:20.4]} 23... Qc7 {[%clk
0:01:51.2]} 24. g3 {[%clk 0:01:14.4]} 24... b6 {[%clk 0:01:50.1]} 25. axb6
{[%clk 0:01:13.2]} 25... Nxb6 {[%clk 0:01:48.9]} 26. Ra1 {[%clk 0:01:07]} 26...
Nfd7 {[%clk 0:01:41.2]} 27. h4 {[%clk 0:01:01.3]} 27... Nf8 {[%clk 0:01:24.2]}
28. Ra5 {[%clk 0:01:00.3]} 28... Qb7 {[%clk 0:01:17]} 29. Be4 {[%clk 0:00:51.1]}
29... Nfd7 {[%clk 0:01:15.4]} 30. Bd3 {[%clk 0:00:47.7]} 30... Nf6 {[%clk
0:01:12.7]} 31. Qf3 {[%clk 0:00:44.4]} 31... Red8 {[%clk 0:01:09.8]} 32. d5
{[%clk 0:00:38.2]} 32... cxd5 {[%clk 0:00:55]} 33. Bxf6 {[%clk 0:00:36.1]} 33...
gxf6 {[%clk 0:00:54.4]} 34. Qxf6 {[%clk 0:00:36.1]} 34... dxc4 {[%clk
0:00:49.5]} 35. Qxh6 {[%clk 0:00:33.2]} 35... Nd5 {[%clk 0:00:43.6]} 36. Bh7+
{[%clk 0:00:20.5]} 36... Kh8 {[%clk 0:00:42.5]} 37. Rxd5 {[%clk 0:00:09.1]}
37... Rxd5 {[%clk 0:00:39.9]} 38. Be4+ {[%clk 0:00:09]} 38... Kg8 {[%clk
0:00:39.1]} 39. Bg2 {[%clk 0:00:07.4]} 39... c3 {[%clk 0:00:35]} 40. Kh2 {[%clk
0:00:06.5]} 40... c2 {[%clk 0:00:33.3]} 41. Re5 {[%clk 0:00:05.7]} 41... Rad8
{[%clk 0:00:24.2]} 42. Rg5+ {[%clk 0:00:04.7]} 42... Rxg5 {[%clk 0:00:23.6]} 43.
Qxg5+ {[%clk 0:00:04.8]} 43... Kh7 {[%clk 0:00:19.1]} 44. Bxb7 {[%clk
0:00:04.4]} 44... c1=Q {[%clk 0:00:17.6]} 45. Be4+ {[%clk 0:00:03.7]} 45... Kh8
{[%clk 0:00:16.1]} 46. Qxc1 {[%clk 0:00:04.3]} 1-0

[Event "*** Titled Tuesday Blitz"]
[Site "Chess.com"]
[Date "2020.04.28"]
[Round "3"]
[White "tacticthunder"]
[Black "Soltan49"]
[Result "1-0"]
[WhiteElo "2670"]
[BlackElo "2417"]
[TimeControl "180+1"]
[EndTime "10:29:38 PDT"]
[Termination "tacticthunder won on time"]

1. e4 {[%clk 0:03:00.9]} 1... c6 {[%clk 0:02:57.5]} 2. d4 {[%clk 0:03:00]} 2...
d5 {[%clk 0:02:58.4]} 3. Nd2 {[%clk 0:03:00.6]} 3... dxe4 {[%clk 0:02:58.3]} 4.
Nxe4 {[%clk 0:03:01.5]} 4... Nf6 {[%clk 0:02:59]} 5. Nxf6+ {[%clk 0:03:01.8]}
5... gxf6 {[%clk 0:02:59.9]} 6. g3 {[%clk 0:03:00.8]} 6... h5 {[%clk 0:02:59.1]}
7. Nf3 {[%clk 0:02:51.6]} 7... Bg4 {[%clk 0:02:57.8]} 8. Be3 {[%clk 0:02:44.1]}
8... h4 {[%clk 0:02:55.7]} 9. h3 {[%clk 0:02:39.4]} 9... hxg3 {[%clk 0:02:55.1]}
10. fxg3 {[%clk 0:02:39.9]} 10... Qd6 {[%clk 0:02:22.1]} 11. Kf2 {[%clk
0:02:37.4]} 11... Bxf3 {[%clk 0:02:13.8]} 12. Qxf3 {[%clk 0:02:38.3]} 12... Nd7
{[%clk 0:02:14.3]} 13. Bg2 {[%clk 0:02:31.4]} 13... Bh6 {[%clk 0:02:11.7]} 14.
c3 {[%clk 0:02:20.6]} 14... O-O-O {[%clk 0:02:09]} 15. Rae1 {[%clk 0:02:15.4]}
15... Bxe3+ {[%clk 0:02:03]} 16. Rxe3 {[%clk 0:02:16.3]} 16... e6 {[%clk
0:02:03.7]} 17. b4 {[%clk 0:02:04.8]} 17... Qd5 {[%clk 0:01:49.6]} 18. Qe2
{[%clk 0:02:03.5]} 18... Qf5+ {[%clk 0:01:43.3]} 19. Rf3 {[%clk 0:02:02.6]}
19... Qg5 {[%clk 0:01:40.2]} 20. a4 {[%clk 0:01:57]} 20... f5 {[%clk 0:01:12.1]}
21. b5 {[%clk 0:01:55.6]} 21... c5 {[%clk 0:01:05.5]} 22. Rf4 {[%clk 0:01:51.4]}
22... Nf6 {[%clk 0:00:59]} 23. dxc5 {[%clk 0:01:47.5]} 23... Rhg8 {[%clk
0:00:53.5]} 24. Qe3 {[%clk 0:01:21.3]} 24... Nh5 {[%clk 0:00:38.9]} 25. Rd4
{[%clk 0:01:16.2]} 25... Qxe3+ {[%clk 0:00:34.9]} 26. Kxe3 {[%clk 0:01:17.1]}
26... Rxg3+ {[%clk 0:00:35.3]} 27. Bf3 {[%clk 0:01:17.5]} 27... e5 {[%clk
0:00:29.2]} 28. Rxd8+ {[%clk 0:01:15.6]} 28... Kxd8 {[%clk 0:00:30.1]} 29. Kf2
{[%clk 0:01:15.9]} 29... e4 {[%clk 0:00:25.1]} 30. Bxh5 {[%clk 0:01:14.7]} 30...
Rxc3 {[%clk 0:00:26]} 31. Bxf7 {[%clk 0:01:09.6]} 31... f4 {[%clk 0:00:25.7]}
32. Re1 {[%clk 0:01:04.5]} 32... Rf3+ {[%clk 0:00:19.8]} 33. Kg2 {[%clk
0:01:03.7]} 33... Rg3+ {[%clk 0:00:19.7]} 34. Kh2 {[%clk 0:01:03.9]} 34... e3
{[%clk 0:00:20]} 35. Bh5 {[%clk 0:00:58.6]} 35... Rg5 {[%clk 0:00:19.7]} 36. Bf3
{[%clk 0:00:58.3]} 36... Kc7 {[%clk 0:00:19.7]} 37. c6 {[%clk 0:00:57.3]} 37...
bxc6 {[%clk 0:00:19.2]} 38. bxc6 {[%clk 0:00:58.2]} 38... Ra5 {[%clk 0:00:20.1]}
39. Rb1 {[%clk 0:00:57.3]} 39... Rxa4 {[%clk 0:00:19.7]} 40. Rb7+ {[%clk
0:00:57.3]} 40... Kd6 {[%clk 0:00:17.7]} 41. Rd7+ {[%clk 0:00:56]} 41... Ke6
{[%clk 0:00:16.9]} 42. Bg4+ {[%clk 0:00:54.4]} 42... Ke5 {[%clk 0:00:16.2]} 43.
c7 {[%clk 0:00:53.9]} 43... Ra2+ {[%clk 0:00:16.2]} 44. Kg1 {[%clk 0:00:53.2]}
44... f3 {[%clk 0:00:02.3]} 45. Bxf3 {[%clk 0:00:46.9]} 45... Rc2 {[%clk
0:00:02.1]} 46. Bb7 {[%clk 0:00:40.2]} 46... Kf4 {[%clk 0:00:01.5]} 47. c8=Q
{[%clk 0:00:38.8]} 1-0

[Event "*** Titled Tuesday Blitz"]
[Site "Chess.com"]
[Date "2020.04.28"]
[Round "3"]
[White "kasparicy"]
[Black "asimali1977"]
[Result "0-1"]
[WhiteElo "2276"]
[BlackElo "2016"]
[TimeControl "180+1"]
[EndTime "10:29:38 PDT"]
[Termination "asimali1977 won on time"]

1. e4 {[%clk 0:00:17.9]} 1... g6 {[%clk 0:02:58.9]} 2. d4 {[%clk 0:00:17.5]}
2... Bg7 {[%clk 0:02:59.5]} 3. Nc3 {[%clk 0:00:18.3]} 3... c5 {[%clk 0:02:59.9]}
4. Be2 {[%clk 0:00:19]} 4... cxd4 {[%clk 0:02:59.2]} 5. Nb5 {[%clk 0:00:19.3]}
5... Nc6 {[%clk 0:02:57.5]} 6. Nf3 {[%clk 0:00:19.4]} 6... a6 {[%clk 0:02:51]}
7. Nbxd4 {[%clk 0:00:18.4]} 7... Qa5+ {[%clk 0:02:47.4]} 8. Bd2 {[%clk
0:00:17.4]} 8... Qb6 {[%clk 0:02:36]} 9. Bc3 {[%clk 0:00:17.4]} 9... Nf6 {[%clk
0:02:31.3]} 10. Bd3 {[%clk 0:00:16.2]} 10... O-O {[%clk 0:02:28.9]} 11. Nxc6
{[%clk 0:00:15.6]} 11... dxc6 {[%clk 0:02:19.8]} 12. O-O {[%clk 0:00:16.5]}
12... Bg4 {[%clk 0:02:18.8]} 13. h3 {[%clk 0:00:16.1]} 13... Bxf3 {[%clk
0:02:12.3]} 14. Qxf3 {[%clk 0:00:17]} 14... Rad8 {[%clk 0:02:11]} 15. Bc4 {[%clk
0:00:17.3]} 15... Qc5 {[%clk 0:02:03.1]} 16. Bb3 {[%clk 0:00:17.3]} 16... b5
{[%clk 0:01:55.2]} 17. Rad1 {[%clk 0:00:17]} 17... b4 {[%clk 0:01:54.1]} 18. Bd2
{[%clk 0:00:16.5]} 18... Qe5 {[%clk 0:01:45.1]} 19. Rfe1 {[%clk 0:00:15.8]}
19... Qb5 {[%clk 0:01:40.8]} 20. c3 {[%clk 0:00:15.2]} 20... a5 {[%clk
0:01:39.8]} 21. cxb4 {[%clk 0:00:15.2]} 21... axb4 {[%clk 0:01:39.2]} 22. Bg5
{[%clk 0:00:15.2]} 22... h6 {[%clk 0:01:31.8]} 23. Be3 {[%clk 0:00:12.3]} 23...
c5 {[%clk 0:01:30]} 24. Rc1 {[%clk 0:00:12.4]} 24... Nd7 {[%clk 0:01:24.9]} 25.
e5 {[%clk 0:00:12.8]} 25... Nxe5 {[%clk 0:01:19.9]} 26. Qg3 {[%clk 0:00:12.8]}
26... c4 {[%clk 0:01:14.9]} 27. Bc2 {[%clk 0:00:11.7]} 27... Nd3 {[%clk
0:01:08.1]} 28. Bxd3 {[%clk 0:00:12]} 28... cxd3 {[%clk 0:01:07]} 29. Bd2 {[%clk
0:00:12.1]} 29... Bxb2 {[%clk 0:01:03]} 30. Rb1 {[%clk 0:00:12.1]} 30... Ba3
{[%clk 0:00:56.1]} 31. Rxe7 {[%clk 0:00:11.3]} 31... b3 {[%clk 0:00:46.4]} 32.
Rxb3 {[%clk 0:00:10.8]} 32... Qc5 {[%clk 0:00:28.4]} 33. Re3 {[%clk 0:00:08.5]}
33... Bc1 {[%clk 0:00:24.5]} 34. Rexd3 {[%clk 0:00:05.9]} 34... Bxd2 {[%clk
0:00:23.5]} 35. Rxd8 {[%clk 0:00:05.8]} 35... Qc1+ {[%clk 0:00:16.7]} 36. Kh2
{[%clk 0:00:03.9]} 36... Bf4 {[%clk 0:00:14.9]} 37. Rxf8+ {[%clk 0:00:04.2]}
37... Kxf8 {[%clk 0:00:14.1]} 38. a3 {[%clk 0:00:02.2]} 38... Kg7 {[%clk
0:00:08.4]} 0-1

[Event "*** Titled Tuesday Blitz"]
[Site "Chess.com"]
[Date "2020.04.28"]
[Round "3"]
[White "leschebaza"]
[Black "Kimster98"]
[Result "0-1"]
[WhiteElo "1963"]
[BlackElo "2586"]
[TimeControl "180+1"]
[EndTime "10:29:39 PDT"]
[Termination "Kimster98 won by resignation"]

1. c4 {[%clk 0:03:00.9]} 1... e6 {[%clk 0:02:53.7]} 2. Nf3 {[%clk 0:03:00.4]}
2... b6 {[%clk 0:02:52.1]} 3. e4 {[%clk 0:02:51.4]} 3... Bb7 {[%clk 0:02:51.6]}
4. Nc3 {[%clk 0:02:51.2]} 4... Nf6 {[%clk 0:02:52]} 5. e5 {[%clk 0:02:45.4]}
5... Ne4 {[%clk 0:02:51.1]} 6. Bd3 {[%clk 0:02:41]} 6... d5 {[%clk 0:02:47.9]}
7. exd6 {[%clk 0:02:31]} 7... Nxd6 {[%clk 0:02:47.1]} 8. O-O {[%clk 0:02:25.5]}
8... c5 {[%clk 0:02:42.9]} 9. Bb1 {[%clk 0:02:05.4]} 9... Nc6 {[%clk 0:02:39.8]}
10. d4 {[%clk 0:02:04]} 10... cxd4 {[%clk 0:02:29.5]} 11. Nxd4 {[%clk
0:02:03.9]} 11... Nxc4 {[%clk 0:02:29.8]} 12. Nxc6 {[%clk 0:01:47]} 12... Qxd1
{[%clk 0:02:28.7]} 13. Rxd1 {[%clk 0:01:47.3]} 13... Bxc6 {[%clk 0:02:29.2]} 14.
b3 {[%clk 0:01:34.6]} 14... Nd6 {[%clk 0:02:04.7]} 15. Bf4 {[%clk 0:01:31.4]}
15... Rd8 {[%clk 0:02:00.7]} 16. Bc2 {[%clk 0:01:30.7]} 16... Be7 {[%clk
0:01:59.6]} 17. Ne2 {[%clk 0:01:21.8]} 17... O-O {[%clk 0:01:57.8]} 18. Nd4
{[%clk 0:01:21.6]} 18... Bb7 {[%clk 0:01:57.9]} 19. Rac1 {[%clk 0:01:11.3]}
19... Ne4 {[%clk 0:01:49.4]} 20. Bb1 {[%clk 0:00:51.5]} 20... Bc5 {[%clk
0:01:24.6]} 21. Be3 {[%clk 0:00:50.9]} 21... Nf6 {[%clk 0:01:16]} 22. h3 {[%clk
0:00:44.5]} 22... h6 {[%clk 0:01:08.9]} 23. Nc2 {[%clk 0:00:40.9]} 23... Bxe3
{[%clk 0:01:02.8]} 24. Nxe3 {[%clk 0:00:40.9]} 24... Rxd1+ {[%clk 0:01:01.4]}
25. Rxd1 {[%clk 0:00:41]} 25... Rc8 {[%clk 0:00:57.3]} 26. Nc4 {[%clk
0:00:40.9]} 26... Bd5 {[%clk 0:00:53.5]} 27. Nd6 {[%clk 0:00:37.7]} 27... Rc6
{[%clk 0:00:52.1]} 28. Nb5 {[%clk 0:00:37.4]} 28... a6 {[%clk 0:00:51.3]} 29.
Nd4 {[%clk 0:00:38]} 29... Rc8 {[%clk 0:00:47]} 30. f3 {[%clk 0:00:37.5]} 30...
Kf8 {[%clk 0:00:44.8]} 31. Kf2 {[%clk 0:00:37.7]} 31... Ke7 {[%clk 0:00:44.4]}
32. b4 {[%clk 0:00:35.9]} 32... Rc4 {[%clk 0:00:39.7]} 33. a3 {[%clk 0:00:35.9]}
33... Rc3 {[%clk 0:00:38.4]} 34. Rd3 {[%clk 0:00:35.4]} 34... Rxd3 {[%clk
0:00:19.1]} 35. Bxd3 {[%clk 0:00:35.6]} 35... a5 {[%clk 0:00:20]} 36. bxa5
{[%clk 0:00:34.8]} 36... bxa5 {[%clk 0:00:20.9]} 37. Bb5 {[%clk 0:00:32.1]}
37... Kd6 {[%clk 0:00:15.3]} 38. Ke3 {[%clk 0:00:28.8]} 38... Kc5 {[%clk
0:00:15.8]} 39. Bd3 {[%clk 0:00:23.8]} 39... g6 {[%clk 0:00:14.9]} 40. f4 {[%clk
0:00:22.3]} 40... Bxg2 {[%clk 0:00:14.5]} 41. Nb3+ {[%clk 0:00:20]} 41... Kb6
{[%clk 0:00:14.7]} 42. h4 {[%clk 0:00:20.4]} 42... Nd5+ {[%clk 0:00:14.5]} 43.
Kf2 {[%clk 0:00:14.4]} 43... Nxf4 {[%clk 0:00:14.9]} 44. Bc4 {[%clk 0:00:14.7]}
44... Bd5 {[%clk 0:00:14.9]} 45. Bxd5 {[%clk 0:00:12.3]} 45... Nxd5 {[%clk
0:00:15.8]} 46. Nd4 {[%clk 0:00:12.7]} 46... g5 {[%clk 0:00:16.3]} 47. h5 {[%clk
0:00:12.3]} 47... Nf4 {[%clk 0:00:16.4]} 0-1

[Event "*** Titled Tuesday Blitz"]
[Site "Chess.com"]
[Date "2020.04.28"]
[Round "3"]
[White "Kotofeyca"]
[Black "Paladin61"]
[Result "1-0"]
[WhiteElo "2416"]
[BlackElo "2579"]
[TimeControl "180+1"]
[EndTime "10:29:39 PDT"]
[Termination "Kotofeyca won on time"]

1. d4 {[%clk 0:03:00.9]} 1... Nf6 {[%clk 0:02:58.9]} 2. c4 {[%clk 0:03:00.4]}
2... g6 {[%clk 0:02:59]} 3. f3 {[%clk 0:03:00.5]} 3... Bg7 {[%clk 0:02:58.9]} 4.
e4 {[%clk 0:03:00.6]} 4... d6 {[%clk 0:02:59.2]} 5. Nc3 {[%clk 0:03:01.5]} 5...
O-O {[%clk 0:02:58.9]} 6. Be3 {[%clk 0:03:02]} 6... c5 {[%clk 0:02:54.3]} 7.
dxc5 {[%clk 0:03:01]} 7... dxc5 {[%clk 0:02:52.1]} 8. Qxd8 {[%clk 0:03:01.9]}
8... Rxd8 {[%clk 0:02:51.3]} 9. Bxc5 {[%clk 0:03:02.8]} 9... Nc6 {[%clk
0:02:50.8]} 10. Nd5 {[%clk 0:03:03.3]} 10... Nd7 {[%clk 0:02:49.2]} 11. Nxe7+
{[%clk 0:03:03.3]} 11... Nxe7 {[%clk 0:02:48]} 12. Bxe7 {[%clk 0:03:04.2]} 12...
Bxb2 {[%clk 0:02:47]} 13. Bxd8 {[%clk 0:03:04]} 13... Bc3+ {[%clk 0:02:42.7]}
14. Kd1 {[%clk 0:03:03.6]} 14... Bxa1 {[%clk 0:02:43.2]} 15. Ne2 {[%clk
0:03:04.1]} 15... Ne5 {[%clk 0:02:15.8]} 16. Nf4 {[%clk 0:03:03.2]} 16... Bd7
{[%clk 0:01:46.8]} 17. Bc7 {[%clk 0:03:02.3]} 17... Rc8 {[%clk 0:01:15.4]} 18.
Nd5 {[%clk 0:03:02.1]} 18... Kg7 {[%clk 0:01:14.2]} 19. Kc2 {[%clk 0:02:41.6]}
19... Be6 {[%clk 0:01:09.7]} 20. Be2 {[%clk 0:02:17.1]} 20... Bxd5 {[%clk
0:01:00.2]} 21. exd5 {[%clk 0:01:23.3]} 21... Rxc7 {[%clk 0:00:58.6]} 22. Rxa1
{[%clk 0:01:22.4]} 22... Nxc4 {[%clk 0:00:58.6]} 23. Bxc4 {[%clk 0:01:22.6]}
23... Rxc4+ {[%clk 0:00:58.9]} 24. Kd3 {[%clk 0:01:23]} 24... Rc7 {[%clk
0:00:47.6]} 25. Re1 {[%clk 0:01:15.1]} 25... Kf8 {[%clk 0:00:33]} 26. Kd4 {[%clk
0:01:03.9]} 26... Re7 {[%clk 0:00:31.9]} 27. Re4 {[%clk 0:00:56.5]} 27... Ke8
{[%clk 0:00:23.4]} 28. g4 {[%clk 0:00:42.1]} 28... h6 {[%clk 0:00:18.5]} 29. h4
{[%clk 0:00:34.8]} 29... Kd7 {[%clk 0:00:18.4]} 30. Rf4 {[%clk 0:00:23.1]} 30...
Ke8 {[%clk 0:00:17.8]} 31. Re4 {[%clk 0:00:19.3]} 31... Kd7 {[%clk 0:00:16.2]}
32. Rf4 {[%clk 0:00:18.8]} 32... Ke8 {[%clk 0:00:11.9]} 33. h5 {[%clk
0:00:18.9]} 33... gxh5 {[%clk 0:00:07.8]} 34. gxh5 {[%clk 0:00:19.8]} 34... Re2
{[%clk 0:00:07.6]} 35. Re4+ {[%clk 0:00:17.6]} 35... Rxe4+ {[%clk 0:00:02]} 36.
fxe4 {[%clk 0:00:18.5]} 1-0

[Event "*** Titled Tuesday Blitz"]
[Site "Chess.com"]
[Date "2020.04.28"]
[Round "3"]
[White "SARGISMV"]
[Black "kaumandur01"]
[Result "0-1"]
[WhiteElo "2446"]
[BlackElo "2783"]
[TimeControl "180+1"]
[EndTime "10:29:41 PDT"]
[Termination "kaumandur01 won on time"]

1. c4 {[%clk 0:03:00.9]} 1... Nf6 {[%clk 0:02:59.8]} 2. Nc3 {[%clk 0:03:00.5]}
2... g6 {[%clk 0:03:00.5]} 3. e4 {[%clk 0:03:00.2]} 3... d6 {[%clk 0:03:01.4]}
4. d4 {[%clk 0:03:00.2]} 4... Bg7 {[%clk 0:03:02.1]} 5. Be2 {[%clk 0:03:00.9]}
5... O-O {[%clk 0:03:02.8]} 6. Nf3 {[%clk 0:03:01.6]} 6... e5 {[%clk 0:03:02.9]}
7. O-O {[%clk 0:03:02.3]} 7... Nc6 {[%clk 0:03:03.3]} 8. d5 {[%clk 0:03:02.9]}
8... Ne7 {[%clk 0:03:03.9]} 9. Ne1 {[%clk 0:03:03.7]} 9... Nd7 {[%clk
0:03:03.9]} 10. Nd3 {[%clk 0:03:04.6]} 10... f5 {[%clk 0:03:04.5]} 11. Bd2
{[%clk 0:03:05.2]} 11... Nf6 {[%clk 0:03:05.1]} 12. f3 {[%clk 0:03:05.1]} 12...
f4 {[%clk 0:03:05.6]} 13. c5 {[%clk 0:03:05.7]} 13... g5 {[%clk 0:03:06.3]} 14.
cxd6 {[%clk 0:03:06.6]} 14... cxd6 {[%clk 0:03:06.5]} 15. Nf2 {[%clk 0:03:07.5]}
15... Ng6 {[%clk 0:03:07.2]} 16. Qc2 {[%clk 0:03:07.1]} 16... Rf7 {[%clk
0:03:04.5]} 17. Rfc1 {[%clk 0:03:07.3]} 17... Bf8 {[%clk 0:02:58.5]} 18. Nb5
{[%clk 0:03:02.7]} 18... h5 {[%clk 0:02:58.2]} 19. Nc7 {[%clk 0:03:02.2]} 19...
Rb8 {[%clk 0:02:57.9]} 20. Ne6 {[%clk 0:03:02.7]} 20... Bxe6 {[%clk 0:02:58.1]}
21. dxe6 {[%clk 0:03:03.6]} 21... Rg7 {[%clk 0:02:58.6]} 22. h3 {[%clk
0:03:01.8]} 22... Nh4 {[%clk 0:02:54]} 23. Qb3 {[%clk 0:03:01.5]} 23... Be7
{[%clk 0:02:53.1]} 24. a4 {[%clk 0:02:59]} 24... Kh8 {[%clk 0:02:52.5]} 25. Bb4
{[%clk 0:02:58.7]} 25... g4 {[%clk 0:02:36.2]} 26. hxg4 {[%clk 0:02:52.4]} 26...
hxg4 {[%clk 0:02:35.9]} 27. fxg4 {[%clk 0:02:53]} 27... Qb6 {[%clk 0:02:35.4]}
28. a5 {[%clk 0:02:47.2]} 28... Qe3 {[%clk 0:02:33.8]} 29. Qd3 {[%clk
0:02:12.9]} 29... Nxg4 {[%clk 0:02:18.5]} 30. Bxg4 {[%clk 0:02:10.7]} 30... Qxd3
{[%clk 0:02:18.4]} 31. Nxd3 {[%clk 0:02:06.2]} 31... Rxg4 {[%clk 0:02:18.3]} 32.
Rc2 {[%clk 0:02:04.6]} 32... f3 {[%clk 0:02:14.5]} 33. Nxe5 {[%clk 0:02:02.5]}
33... Rxe4 {[%clk 0:02:06.8]} 34. Bxd6 {[%clk 0:01:43.3]} 34... Bxd6 {[%clk
0:02:05]} 35. Nf7+ {[%clk 0:01:43.4]} 35... Kg8 {[%clk 0:02:03.4]} 36. Nxd6
{[%clk 0:01:44.3]} 36... Rxe6 {[%clk 0:02:03.5]} 37. Ra4 {[%clk 0:01:26.7]}
37... Nxg2 {[%clk 0:01:43.7]} 38. Rg4+ {[%clk 0:01:21.2]} 38... Kf8 {[%clk
0:01:30.4]} 39. Rf2 {[%clk 0:01:13.1]} 39... Ne1 {[%clk 0:01:24.3]} 40. Nf5
{[%clk 0:00:50.2]} 40... Rd8 {[%clk 0:01:17.9]} 41. Nh4 {[%clk 0:00:44.9]} 41...
Rf6 {[%clk 0:00:51.8]} 42. Kh2 {[%clk 0:00:17.7]} 42... Re8 {[%clk 0:00:18.4]}
43. Kg3 {[%clk 0:00:15.9]} 43... Re3 {[%clk 0:00:18.4]} 44. Rb4 {[%clk
0:00:06.2]} 44... Nd3 {[%clk 0:00:16.8]} 0-1